[Event "Titled Tuesday Blitz May 10 Late 2022"]
[White "Wieczorek, Oskar"]
[Black "Wartiovaara, Oliver"]
[WhiteFideId "1133950"]
[BlackFideId "513024"]
[WhiteElo "2330"]
[BlackElo "1971"]
[Result "1-0"]
[Round "01"]
[TimeControl "180+1"]
[Date "2022.05.11"]
[WhiteClock "0:01:41"]
[BlackClock "0:01:11"]

1. e4 {[%clk 0:02:58]}  e6 {[%clk 0:02:55]} 2. d4 {[%clk 0:02:57]}  d5 {[%clk 0:02:56]} 3. Nd2 {[%clk 0:02:58]}  Nf6 {[%clk 0:02:52]} 4. e5 {[%clk 0:02:58]}  Nfd7 {[%clk 0:02:51]} 5. f4 {[%clk 0:02:58]}  c5 {[%clk 0:02:52]} 6. c3 {[%clk 0:02:59]}  Nc6 {[%clk 0:02:49]} 7. Ndf3 {[%clk 0:02:59]}  Qb6 {[%clk 0:02:45]} 8. a3 {[%clk 0:02:59]}  a5 {[%clk 0:02:39]} 9. b3 {[%clk 0:02:58]}  Be7 {[%clk 0:02:20]} 10. h4 {[%clk 0:02:57]}  O-O {[%clk 0:02:16]} 11. Bd3 {[%clk 0:02:57]}  f5 {[%clk 0:02:15]} 12. Ne2 {[%clk 0:02:53]}  Ndb8 {[%clk 0:02:01]} 13. h5 {[%clk 0:02:40]}  h6 {[%clk 0:01:59]} 14. Rg1 {[%clk 0:02:39]}  Bd7 {[%clk 0:01:44]} 15. g4 {[%clk 0:02:39]}  fxg4 {[%clk 0:01:44]} 16. Rxg4 {[%clk 0:02:40]}  Be8 {[%clk 0:01:37]} 17. Ng3 {[%clk 0:02:21]}  Kh8 {[%clk 0:01:33]} 18. Bb1 {[%clk 0:02:15]}  Rf5 {[%clk 0:01:15]} 19. Nxf5 {[%clk 0:02:06]}  Bxh5 {[%clk 0:01:13]} 20. Ne3 {[%clk 0:01:53]}  cxd4 {[%clk 0:01:12]} 21. Qd3 {[%clk 0:01:44]}  Kg8 {[%clk 0:01:11]} 22. Qh7+ {[%clk 0:01:42]}  Kf8 {[%clk 0:01:11]} 23. Qh8+ {[%clk 0:01:41]} 1-0


[Site "https://www.chess.com"]

[Event "Titled Tuesday Blitz May 10 Late 2022"]
[White "Akrakan"]
[Black "D`Arruda, Ricardo D."]
[BlackFideId "100692"]
[WhiteElo "2124"]
[BlackElo "2461"]
[Result "0-1"]
[Round "02"]
[TimeControl "180+1"]
[Date "2022.05.11"]
[WhiteClock "0:00:15"]
[BlackClock "0:00:22"]

1. e4 {[%clk 0:02:58]}  c5 {[%clk 0:02:59]} 2. Nf3 {[%clk 0:02:58]}  Nc6 {[%clk 0:02:59]} 3. c3 {[%clk 0:02:58]}  e6 {[%clk 0:02:57]} 4. d4 {[%clk 0:02:58]}  d5 {[%clk 0:02:56]} 5. e5 {[%clk 0:02:58]}  Nge7 {[%clk 0:02:54]} 6. a3 {[%clk 0:02:56]}  cxd4 {[%clk 0:02:53]} 7. cxd4 {[%clk 0:02:56]}  Nf5 {[%clk 0:02:54]} 8. b4 {[%clk 0:02:55]}  Be7 {[%clk 0:02:47]} 9. Be2 {[%clk 0:02:52]}  O-O {[%clk 0:02:46]} 10. O-O {[%clk 0:02:53]}  f6 {[%clk 0:02:35]} 11. Bb2 {[%clk 0:02:50]}  fxe5 {[%clk 0:02:30]} 12. dxe5 {[%clk 0:02:51]}  Bd7 {[%clk 0:02:29]} 13. Nc3 {[%clk 0:02:43]}  Rc8 {[%clk 0:02:26]} 14. Rc1 {[%clk 0:02:42]}  Kh8 {[%clk 0:02:12]} 15. Bd3 {[%clk 0:02:32]}  g6 {[%clk 0:02:03]} 16. Ne2 {[%clk 0:02:31]}  a6 {[%clk 0:01:58]} 17. Ng3 {[%clk 0:02:29]}  Be8 {[%clk 0:01:50]} 18. Qd2 {[%clk 0:02:18]}  Nh4 {[%clk 0:01:44]} 19. Qe2 {[%clk 0:02:12]}  Nxf3+ {[%clk 0:01:41]} 20. gxf3 {[%clk 0:02:12]}  Bg5 {[%clk 0:01:39]} 21. Rcd1 {[%clk 0:02:07]}  Bf4 {[%clk 0:01:39]} 22. Bb1 {[%clk 0:01:45]}  Qh4 {[%clk 0:01:37]} 23. Kg2 {[%clk 0:01:34]}  Ne7 {[%clk 0:01:36]} 24. Rd4 {[%clk 0:01:30]}  Bb5 {[%clk 0:01:34]} 25. Qd1 {[%clk 0:01:22]}  Bxf1+ {[%clk 0:01:33]} 26. Qxf1 {[%clk 0:01:21]}  Qg5 {[%clk 0:01:27]} 27. Qd3 {[%clk 0:01:17]}  Bxe5 {[%clk 0:01:20]} 28. Rg4 {[%clk 0:01:13]}  Qf6 {[%clk 0:01:20]} 29. Nh5 {[%clk 0:01:08]}  Bxb2 {[%clk 0:01:11]} 30. Nxf6 {[%clk 0:01:08]}  Bxf6 {[%clk 0:01:12]} 31. f4 {[%clk 0:00:57]}  Rc3 {[%clk 0:01:12]} 32. Qe2 {[%clk 0:00:54]}  Rc6 {[%clk 0:01:09]} 33. Rg3 {[%clk 0:00:53]}  Re8 {[%clk 0:00:59]} 34. Rh3 {[%clk 0:00:48]}  Kg7 {[%clk 0:00:58]} 35. b5 {[%clk 0:00:45]}  Rb6 {[%clk 0:00:56]} 36. a4 {[%clk 0:00:44]}  axb5 {[%clk 0:00:55]} 37. axb5 {[%clk 0:00:44]}  Rd6 {[%clk 0:00:56]} 38. Bd3 {[%clk 0:00:43]}  d4 {[%clk 0:00:55]} 39. Qe4 {[%clk 0:00:42]}  Nf5 {[%clk 0:00:51]} 40. Qxb7+ {[%clk 0:00:41]}  Re7 {[%clk 0:00:52]} 41. Qb8 {[%clk 0:00:34]}  Red7 {[%clk 0:00:46]} 42. Bxf5 {[%clk 0:00:33]}  exf5 {[%clk 0:00:47]} 43. Rd3 {[%clk 0:00:33]}  Bd8 {[%clk 0:00:44]} 44. Qc8 {[%clk 0:00:31]}  Bb6 {[%clk 0:00:44]} 45. Qc4 {[%clk 0:00:30]}  Re7 {[%clk 0:00:41]} 46. h4 {[%clk 0:00:29]}  Re4 {[%clk 0:00:41]} 47. Kg3 {[%clk 0:00:23]}  Re7 {[%clk 0:00:38]} 48. h5 {[%clk 0:00:23]}  gxh5 {[%clk 0:00:32]} 49. Qc8 {[%clk 0:00:19]}  Rg6+ {[%clk 0:00:31]} 50. Kf3 {[%clk 0:00:18]}  Rg4 {[%clk 0:00:25]} 51. Qxf5 {[%clk 0:00:18]}  Rf7 {[%clk 0:00:22]} 52. Qxh5 {[%clk 0:00:16]}  Rgxf4+ {[%clk 0:00:20]} 53. Ke2 {[%clk 0:00:14]}  Rxf2+ {[%clk 0:00:20]} 54. Kd1 {[%clk 0:00:15]}  Rf1+ {[%clk 0:00:20]} 55. Kc2 {[%clk 0:00:16]}  R7f2+ {[%clk 0:00:20]} 56. Kb3 {[%clk 0:00:16]}  Rb1+ {[%clk 0:00:20]} 57. Kc4 {[%clk 0:00:16]}  Rc2+ {[%clk 0:00:20]} 58. Kd5 {[%clk 0:00:17]}  Rc5+ {[%clk 0:00:20]} 59. Ke4 {[%clk 0:00:16]}  Rxh5 {[%clk 0:00:21]} 60. Rg3+ {[%clk 0:00:15]}  Kh6 {[%clk 0:00:20]} 61. Kd3 {[%clk 0:00:15]}  Rbxb5 {[%clk 0:00:21]} 62. Rf3 {[%clk 0:00:14]}  Rb3+ {[%clk 0:00:21]} 63. Ke4 {[%clk 0:00:14]}  Rxf3 {[%clk 0:00:22]} 64. Kxf3 {[%clk 0:00:15]}  d3 {[%clk 0:00:22]} 0-1


[Site "https://www.chess.com"]

[Event "Titled Tuesday Blitz May 10 Late 2022"]
[White "Arabidze, Meri"]
[Black "Jacobson, Brandon"]
[WhiteFideId "13604040"]
[BlackFideId "30901561"]
[WhiteElo "2335"]
[BlackElo "2362"]
[Result "0-1"]
[Round "02"]
[TimeControl "180+1"]
[Date "2022.05.10"]
[WhiteClock "0:00:04"]
[BlackClock "0:00:27"]

1. d4 {[%clk 0:02:55]}  Nf6 {[%clk 0:02:26]} 2. Nf3 {[%clk 0:02:56]}  g6 {[%clk 0:02:21]} 3. g3 {[%clk 0:02:56]}  Bg7 {[%clk 0:02:21]} 4. Bg2 {[%clk 0:02:57]}  O-O {[%clk 0:02:22]} 5. O-O {[%clk 0:02:57]}  d6 {[%clk 0:02:23]} 6. a4 {[%clk 0:02:58]}  Nc6 {[%clk 0:02:21]} 7. a5 {[%clk 0:02:57]}  Bf5 {[%clk 0:02:12]} 8. a6 {[%clk 0:02:56]}  bxa6 {[%clk 0:02:09]} 9. c3 {[%clk 0:02:48]}  Qd7 {[%clk 0:01:58]} 10. Nbd2 {[%clk 0:02:45]}  a5 {[%clk 0:01:54]} 11. Nc4 {[%clk 0:02:44]}  Be4 {[%clk 0:01:53]} 12. Nxa5 {[%clk 0:02:40]}  Rfb8 {[%clk 0:01:52]} 13. Nc4 {[%clk 0:02:33]}  d5 {[%clk 0:01:32]} 14. Nce5 {[%clk 0:02:27]}  Qe8 {[%clk 0:01:31]} 15. Nxc6 {[%clk 0:02:24]}  Qxc6 {[%clk 0:01:32]} 16. Ne5 {[%clk 0:02:24]}  Qe8 {[%clk 0:01:27]} 17. Qa4 {[%clk 0:02:09]}  Bxg2 {[%clk 0:01:19]} 18. Kxg2 {[%clk 0:02:07]}  Rb6 {[%clk 0:01:07]} 19. f3 {[%clk 0:02:01]}  Qc8 {[%clk 0:01:03]} 20. b4 {[%clk 0:01:54]}  Ne8 {[%clk 0:01:03]} 21. Bf4 {[%clk 0:01:29]}  Nd6 {[%clk 0:01:02]} 22. Nd7 {[%clk 0:01:21]}  Rb7 {[%clk 0:00:51]} 23. Nc5 {[%clk 0:01:21]}  Rbb8 {[%clk 0:00:47]} 24. Nd7 {[%clk 0:01:17]}  Rb5 {[%clk 0:00:47]} 25. Bxd6 {[%clk 0:01:10]}  Qxd7 {[%clk 0:00:47]} 26. Bxc7 {[%clk 0:00:59]}  Rc8 {[%clk 0:00:47]} 27. Be5 {[%clk 0:00:47]}  Bxe5 {[%clk 0:00:43]} 28. dxe5 {[%clk 0:00:48]}  Rxc3 {[%clk 0:00:43]} 29. Qxa7 {[%clk 0:00:41]}  Qe6 {[%clk 0:00:42]} 30. f4 {[%clk 0:00:21]}  Rxb4 {[%clk 0:00:37]} 31. Rfd1 {[%clk 0:00:18]}  Rb2 {[%clk 0:00:35]} 32. Qa8+ {[%clk 0:00:17]}  Kg7 {[%clk 0:00:35]} 33. Re1 {[%clk 0:00:05]}  Qg4 {[%clk 0:00:30]} 34. Qa6 {[%clk 0:00:05]}  Re3 {[%clk 0:00:26]} 35. Kf2 {[%clk 0:00:04]}  Qf3+ {[%clk 0:00:27]} 36. Kg1 {[%clk 0:00:04]}  Rexe2 {[%clk 0:00:27]} 0-1


[Site "https://www.chess.com"]

[Event "Titled Tuesday Blitz May 10 Late 2022"]
[White "Atanejhad, Sahebali"]
[Black "Ricaurte Lopez, Juan Carlos"]
[WhiteFideId "12506664"]
[BlackFideId "3600327"]
[WhiteElo "1953"]
[BlackElo "2209"]
[Result "1-0"]
[Round "02"]
[TimeControl "180+1"]
[Date "2022.05.11"]
[WhiteClock "0:01:03"]
[BlackClock "0:00:08"]

1. d4 {[%clk 0:02:57]}  Nf6 {[%clk 0:02:37]} 2. Nf3 {[%clk 0:02:58]}  e6 {[%clk 0:02:34]} 3. c4 {[%clk 0:02:57]}  d5 {[%clk 0:02:32]} 4. g3 {[%clk 0:02:57]}  c5 {[%clk 0:02:29]} 5. cxd5 {[%clk 0:02:57]}  exd5 {[%clk 0:02:25]} 6. Bg2 {[%clk 0:02:57]}  Nc6 {[%clk 0:02:23]} 7. O-O {[%clk 0:02:58]}  Be7 {[%clk 0:02:19]} 8. Nc3 {[%clk 0:02:57]}  O-O {[%clk 0:02:13]} 9. Be3 {[%clk 0:02:57]}  c4 {[%clk 0:02:04]} 10. Ne5 {[%clk 0:02:53]}  Be6 {[%clk 0:01:56]} 11. b3 {[%clk 0:02:45]}  Qa5 {[%clk 0:01:47]} 12. Nxc6 {[%clk 0:02:38]}  bxc6 {[%clk 0:01:44]} 13. Rc1 {[%clk 0:02:26]}  Ba3 {[%clk 0:01:28]} 14. Bd2 {[%clk 0:02:18]}  Bxc1 {[%clk 0:01:25]} 15. Qxc1 {[%clk 0:02:13]}  Qb6 {[%clk 0:01:20]} 16. Na4 {[%clk 0:01:59]}  Qxd4 {[%clk 0:01:19]} 17. Bc3 {[%clk 0:01:59]}  Qg4 {[%clk 0:01:15]} 18. Bxf6 {[%clk 0:01:48]}  gxf6 {[%clk 0:01:16]} 19. Bf3 {[%clk 0:01:39]}  Qg5 {[%clk 0:01:06]} 20. Qc3 {[%clk 0:01:36]}  cxb3 {[%clk 0:01:04]} 21. axb3 {[%clk 0:01:31]}  Rab8 {[%clk 0:01:01]} 22. Nc5 {[%clk 0:01:22]}  Rfc8 {[%clk 0:00:57]} 23. h4 {[%clk 0:01:16]}  Qe5 {[%clk 0:00:53]} 24. Qd2 {[%clk 0:01:16]}  Rb5 {[%clk 0:00:48]} 25. Nd3 {[%clk 0:01:16]}  Qf5 {[%clk 0:00:30]} 26. Qh6 {[%clk 0:01:15]}  Rxb3 {[%clk 0:00:26]} 27. Nf4 {[%clk 0:01:14]}  Rxf3 {[%clk 0:00:19]} 28. exf3 {[%clk 0:01:15]}  d4 {[%clk 0:00:18]} 29. Nh5 {[%clk 0:01:13]}  Qg6 {[%clk 0:00:16]} 30. Nxf6+ {[%clk 0:01:13]}  Kh8 {[%clk 0:00:16]} 31. Qf4 {[%clk 0:01:13]}  Qf5 {[%clk 0:00:15]} 32. Qxd4 {[%clk 0:01:12]}  c5 {[%clk 0:00:13]} 33. Qc3 {[%clk 0:01:11]}  h6 {[%clk 0:00:12]} 34. Nh5+ {[%clk 0:01:08]}  f6 {[%clk 0:00:09]} 35. Nxf6 {[%clk 0:01:09]}  Kg7 {[%clk 0:00:09]} 36. Nh5+ {[%clk 0:01:05]}  Kf7 {[%clk 0:00:09]} 37. Qg7+ {[%clk 0:01:04]}  Ke8 {[%clk 0:00:08]} 38. Nf6+ {[%clk 0:01:03]}  Kd8 {[%clk 0:00:08]} 39. Rd1+ {[%clk 0:01:03]} 1-0


[Site "https://www.chess.com"]

[Event "Titled Tuesday Blitz May 10 Late 2022"]
[White "Barria Zuniga, Daniel"]
[Black "Svane, Frederik"]
[WhiteFideId "3400816"]
[BlackFideId "12923044"]
[WhiteElo "2414"]
[BlackElo "2459"]
[Result "0-1"]
[Round "02"]
[TimeControl "180+1"]
[Date "2022.05.10"]
[WhiteClock "0:00:03"]
[BlackClock "0:00:12"]

1. c4 {[%clk 0:03:00]}  Nf6 {[%clk 0:02:59]} 2. Nc3 {[%clk 0:03:00]}  e6 {[%clk 0:03:00]} 3. g3 {[%clk 0:02:59]}  d5 {[%clk 0:03:00]} 4. Bg2 {[%clk 0:02:59]}  d4 {[%clk 0:02:59]} 5. Na4 {[%clk 0:02:59]}  Be7 {[%clk 0:02:55]} 6. Nf3 {[%clk 0:02:56]}  O-O {[%clk 0:02:55]} 7. O-O {[%clk 0:02:56]}  Nc6 {[%clk 0:02:56]} 8. d3 {[%clk 0:02:57]}  e5 {[%clk 0:02:55]} 9. a3 {[%clk 0:02:56]}  a5 {[%clk 0:02:55]} 10. Bg5 {[%clk 0:02:55]}  h6 {[%clk 0:02:52]} 11. Bxf6 {[%clk 0:02:54]}  Bxf6 {[%clk 0:02:53]} 12. Qb3 {[%clk 0:02:45]}  Ne7 {[%clk 0:02:19]} 13. Qc2 {[%clk 0:02:39]}  Nc6 {[%clk 0:02:12]} 14. Qb3 {[%clk 0:02:37]}  Rb8 {[%clk 0:02:03]} 15. Nd2 {[%clk 0:02:34]}  Bg4 {[%clk 0:01:58]} 16. Rfe1 {[%clk 0:02:28]}  Be7 {[%clk 0:01:58]} 17. Qb5 {[%clk 0:02:24]}  Bd7 {[%clk 0:01:53]} 18. Nc5 {[%clk 0:02:17]}  Bxc5 {[%clk 0:01:52]} 19. Qxc5 {[%clk 0:02:17]}  b6 {[%clk 0:01:53]} 20. Qd5 {[%clk 0:02:17]}  Qe7 {[%clk 0:01:53]} 21. e3 {[%clk 0:02:13]}  Rfd8 {[%clk 0:01:43]} 22. exd4 {[%clk 0:02:11]}  Be8 {[%clk 0:01:43]} 23. Qb5 {[%clk 0:01:39]}  Nxd4 {[%clk 0:01:25]} 24. Qxe5 {[%clk 0:01:38]}  Qf8 {[%clk 0:01:24]} 25. Rac1 {[%clk 0:01:34]}  Rd6 {[%clk 0:01:19]} 26. Ne4 {[%clk 0:01:32]}  Rdd8 {[%clk 0:01:19]} 27. Qxc7 {[%clk 0:01:29]}  Ne6 {[%clk 0:01:16]} 28. Qe5 {[%clk 0:01:26]}  Bc6 {[%clk 0:01:12]} 29. Rcd1 {[%clk 0:00:48]}  Ba4 {[%clk 0:01:11]} 30. Rd2 {[%clk 0:00:46]}  Nd4 {[%clk 0:01:12]} 31. Re3 {[%clk 0:00:37]}  Nc2 {[%clk 0:01:10]} 32. Rxc2 {[%clk 0:00:31]}  Bxc2 {[%clk 0:01:10]} 33. Qc3 {[%clk 0:00:32]}  Ba4 {[%clk 0:01:08]} 34. d4 {[%clk 0:00:32]}  Rbc8 {[%clk 0:01:03]} 35. b4 {[%clk 0:00:31]}  axb4 {[%clk 0:01:02]} 36. axb4 {[%clk 0:00:32]}  Bc6 {[%clk 0:00:59]} 37. c5 {[%clk 0:00:30]}  Ba8 {[%clk 0:00:52]} 38. Qc4 {[%clk 0:00:28]}  Qe7 {[%clk 0:00:46]} 39. h4 {[%clk 0:00:19]}  Qd7 {[%clk 0:00:44]} 40. Rd3 {[%clk 0:00:13]}  Qf5 {[%clk 0:00:33]} 41. Nc3 {[%clk 0:00:07]}  Bxg2 {[%clk 0:00:23]} 42. Kxg2 {[%clk 0:00:08]}  Qg4 {[%clk 0:00:17]} 43. c6 {[%clk 0:00:04]}  h5 {[%clk 0:00:13]} 44. b5 {[%clk 0:00:04]}  Rd6 {[%clk 0:00:12]} 45. Nd5 {[%clk 0:00:04]}  Qe4+ {[%clk 0:00:11]} 46. Kh2 {[%clk 0:00:03]}  Qxd5 {[%clk 0:00:11]} 47. Qxd5 {[%clk 0:00:03]}  Rxd5 {[%clk 0:00:12]} 0-1


[Site "https://www.chess.com"]

[Event "Titled Tuesday Blitz May 10 Late 2022"]
[White "Bazeev, German"]
[Black "Koziorowicz, Michal"]
[WhiteFideId "24119350"]
[BlackFideId "21809194"]
[WhiteElo "2493"]
[BlackElo "2219"]
[Result "0-1"]
[Round "02"]
[TimeControl "180+1"]
[Date "2022.05.10"]
[WhiteClock "0:00:18"]
[BlackClock "0:00:52"]

1. d4 {[%clk 0:03:00]}  f5 {[%clk 0:02:56]} 2. g3 {[%clk 0:02:59]}  Nf6 {[%clk 0:02:56]} 3. Bg2 {[%clk 0:02:58]}  e6 {[%clk 0:02:57]} 4. c4 {[%clk 0:02:56]}  d5 {[%clk 0:02:57]} 5. cxd5 {[%clk 0:02:54]}  exd5 {[%clk 0:02:58]} 6. Nf3 {[%clk 0:02:54]}  c6 {[%clk 0:02:58]} 7. Ne5 {[%clk 0:02:54]}  Bd6 {[%clk 0:02:58]} 8. f4 {[%clk 0:02:54]}  O-O {[%clk 0:02:58]} 9. O-O {[%clk 0:02:53]}  Ne4 {[%clk 0:02:58]} 10. Nc3 {[%clk 0:02:52]}  Nd7 {[%clk 0:02:55]} 11. Nxe4 {[%clk 0:02:41]}  fxe4 {[%clk 0:02:55]} 12. Nxd7 {[%clk 0:02:37]}  Bxd7 {[%clk 0:02:55]} 13. e3 {[%clk 0:02:35]}  Qc8 {[%clk 0:02:50]} 14. Bd2 {[%clk 0:02:35]}  Bg4 {[%clk 0:02:50]} 15. Qe1 {[%clk 0:02:31]}  Rf6 {[%clk 0:02:50]} 16. Bb4 {[%clk 0:02:26]}  Qf5 {[%clk 0:02:45]} 17. Bxd6 {[%clk 0:02:24]}  Rxd6 {[%clk 0:02:46]} 18. b4 {[%clk 0:02:16]}  Rh6 {[%clk 0:02:25]} 19. h4 {[%clk 0:02:09]}  Rg6 {[%clk 0:02:24]} 20. Kh2 {[%clk 0:02:06]}  Rf8 {[%clk 0:02:17]} 21. Rf2 {[%clk 0:02:06]}  Qd7 {[%clk 0:01:47]} 22. Rc1 {[%clk 0:02:03]}  a6 {[%clk 0:01:45]} 23. a4 {[%clk 0:02:02]}  Rf5 {[%clk 0:01:41]} 24. Qf1 {[%clk 0:02:01]}  Rff6 {[%clk 0:01:34]} 25. Bh3 {[%clk 0:02:00]}  h5 {[%clk 0:01:33]} 26. Bg2 {[%clk 0:01:58]}  Rf5 {[%clk 0:01:27]} 27. Rb2 {[%clk 0:01:55]}  Rff6 {[%clk 0:01:24]} 28. b5 {[%clk 0:01:42]}  cxb5 {[%clk 0:01:22]} 29. axb5 {[%clk 0:01:42]}  Rb6 {[%clk 0:01:22]} 30. Rc5 {[%clk 0:01:39]}  axb5 {[%clk 0:01:21]} 31. Rcxb5 {[%clk 0:01:33]}  Rxb5 {[%clk 0:01:22]} 32. Qxb5 {[%clk 0:01:33]}  Rc6 {[%clk 0:01:20]} 33. Ra2 {[%clk 0:01:18]}  Bf3 {[%clk 0:01:11]} 34. Qf1 {[%clk 0:01:03]}  Bg4 {[%clk 0:01:09]} 35. Qb1 {[%clk 0:00:53]}  Kh7 {[%clk 0:01:07]} 36. Ra5 {[%clk 0:00:51]}  Be6 {[%clk 0:01:02]} 37. Rb5 {[%clk 0:00:38]}  Qc8 {[%clk 0:00:58]} 38. f5 {[%clk 0:00:28]}  Bxf5 {[%clk 0:00:55]} 39. Rxd5 {[%clk 0:00:28]}  Rc2 {[%clk 0:00:54]} 40. Rxf5 {[%clk 0:00:21]}  Rxg2+ {[%clk 0:00:54]} 41. Kxg2 {[%clk 0:00:20]}  Qxf5 {[%clk 0:00:55]} 42. Qd1 {[%clk 0:00:18]}  Kg6 {[%clk 0:00:52]} 43. d5 {[%clk 0:00:18]}  Kf7 {[%clk 0:00:51]} 44. d6 {[%clk 0:00:18]}  Qf3+ {[%clk 0:00:49]} 45. Qxf3+ {[%clk 0:00:17]}  exf3+ {[%clk 0:00:50]} 46. Kxf3 {[%clk 0:00:18]}  Ke6 {[%clk 0:00:50]} 47. Ke4 {[%clk 0:00:18]}  Kxd6 {[%clk 0:00:50]} 48. Kd4 {[%clk 0:00:19]}  Ke6 {[%clk 0:00:51]} 49. Kc5 {[%clk 0:00:18]}  Ke5 {[%clk 0:00:51]} 50. Kb6 {[%clk 0:00:18]}  Ke4 {[%clk 0:00:52]} 0-1


[Site "https://www.chess.com"]

[Event "Titled Tuesday Blitz May 10 Late 2022"]
[White "Bernal Moro, Luis Javier"]
[Black "Nagy, Gabor"]
[WhiteFideId "2200236"]
[BlackFideId "737119"]
[WhiteElo "2441"]
[BlackElo "2763"]
[Result "0-1"]
[Round "02"]
[TimeControl "180+1"]
[Date "2022.05.11"]
[WhiteClock "0:00:06"]
[BlackClock "0:01:51"]

1. Nf3 {[%clk 0:01:48]}  g6 {[%clk 0:02:57]} 2. c4 {[%clk 0:01:47]}  Bg7 {[%clk 0:02:58]} 3. d4 {[%clk 0:01:47]}  d6 {[%clk 0:02:56]} 4. e4 {[%clk 0:01:46]}  Nc6 {[%clk 0:02:57]} 5. Be2 {[%clk 0:01:44]}  Bg4 {[%clk 0:02:57]} 6. Be3 {[%clk 0:01:44]}  e5 {[%clk 0:02:54]} 7. d5 {[%clk 0:01:44]}  Bxf3 {[%clk 0:02:55]} 8. Bxf3 {[%clk 0:01:44]}  Nd4 {[%clk 0:02:55]} 9. Bxd4 {[%clk 0:01:45]}  exd4 {[%clk 0:02:55]} 10. Na3 {[%clk 0:01:45]}  Ne7 {[%clk 0:02:54]} 11. O-O {[%clk 0:01:45]}  c5 {[%clk 0:02:52]} 12. dxc6 {[%clk 0:01:45]}  bxc6 {[%clk 0:02:53]} 13. b4 {[%clk 0:01:45]}  O-O {[%clk 0:02:52]} 14. Nc2 {[%clk 0:01:45]}  Rb8 {[%clk 0:02:51]} 15. a3 {[%clk 0:01:44]}  d3 {[%clk 0:02:47]} 16. Qxd3 {[%clk 0:01:43]}  Bxa1 {[%clk 0:02:47]} 17. Rxa1 {[%clk 0:01:43]}  a5 {[%clk 0:02:48]} 18. Rd1 {[%clk 0:01:42]}  axb4 {[%clk 0:02:47]} 19. axb4 {[%clk 0:01:42]}  d5 {[%clk 0:02:20]} 20. exd5 {[%clk 0:01:37]}  cxd5 {[%clk 0:02:21]} 21. cxd5 {[%clk 0:01:22]}  Qd6 {[%clk 0:02:20]} 22. g3 {[%clk 0:01:19]}  Rfc8 {[%clk 0:02:18]} 23. Qd2 {[%clk 0:01:09]}  Rc4 {[%clk 0:02:15]} 24. Be2 {[%clk 0:01:06]}  Rc7 {[%clk 0:02:12]} 25. b5 {[%clk 0:01:03]}  Nf5 {[%clk 0:02:07]} 26. Nb4 {[%clk 0:00:58]}  h5 {[%clk 0:02:03]} 27. Nc6 {[%clk 0:00:55]}  Re8 {[%clk 0:02:04]} 28. h4 {[%clk 0:00:48]}  Nxg3 {[%clk 0:02:01]} 29. fxg3 {[%clk 0:00:48]}  Qxg3+ {[%clk 0:02:02]} 30. Kf1 {[%clk 0:00:48]}  Re4 {[%clk 0:01:59]} 31. d6 {[%clk 0:00:33]}  Rxh4 {[%clk 0:01:54]} 32. Bc4 {[%clk 0:00:10]}  Rh1+ {[%clk 0:01:51]} 33. Ke2 {[%clk 0:00:10]}  Rh2+ {[%clk 0:01:52]} 34. Kf1 {[%clk 0:00:09]}  Qf3+ {[%clk 0:01:52]} 35. Ke1 {[%clk 0:00:05]}  Rh1+ {[%clk 0:01:51]} 36. Bf1 {[%clk 0:00:06]}  Qxf1# {[%clk 0:01:51]} 0-1


[Site "https://www.chess.com"]

[Event "Titled Tuesday Blitz May 10 Late 2022"]
[White "Bifulco, Michel"]
[Black "Kanyamarala, Tarun"]
[WhiteFideId "828580"]
[BlackFideId "45004714"]
[WhiteElo "2165"]
[BlackElo "2219"]
[Result "0-1"]
[Round "02"]
[TimeControl "180+1"]
[Date "2022.05.11"]
[WhiteClock "0:00:06"]
[BlackClock "0:00:10"]

1. d4 {[%clk 0:03:00]}  Nf6 {[%clk 0:02:53]} 2. Nc3 {[%clk 0:03:01]}  d5 {[%clk 0:02:49]} 3. Bf4 {[%clk 0:03:02]}  a6 {[%clk 0:02:49]} 4. e3 {[%clk 0:03:01]}  e6 {[%clk 0:02:46]} 5. g4 {[%clk 0:03:01]}  Bb4 {[%clk 0:02:47]} 6. Ne2 {[%clk 0:02:54]}  Nxg4 {[%clk 0:02:46]} 7. Rg1 {[%clk 0:02:53]}  e5 {[%clk 0:02:34]} 8. dxe5 {[%clk 0:02:50]}  Nc6 {[%clk 0:02:34]} 9. h3 {[%clk 0:02:43]}  Ngxe5 {[%clk 0:02:28]} 10. Nd4 {[%clk 0:02:31]}  Nxd4 {[%clk 0:02:22]} 11. Bxe5 {[%clk 0:02:31]}  Nf5 {[%clk 0:02:12]} 12. Bd3 {[%clk 0:02:24]}  f6 {[%clk 0:02:01]} 13. Qh5+ {[%clk 0:02:22]}  g6 {[%clk 0:01:47]} 14. Rxg6 {[%clk 0:02:19]}  hxg6 {[%clk 0:01:45]} 15. Qxh8+ {[%clk 0:02:19]}  Kd7 {[%clk 0:01:39]} 16. Qxd8+ {[%clk 0:02:07]}  Kxd8 {[%clk 0:01:39]} 17. Bxf6+ {[%clk 0:02:07]}  Be7 {[%clk 0:01:39]} 18. Nxd5 {[%clk 0:02:05]}  Bxf6 {[%clk 0:01:37]} 19. Nxf6 {[%clk 0:02:05]}  Ke7 {[%clk 0:01:37]} 20. Nd5+ {[%clk 0:02:04]}  Kd6 {[%clk 0:01:37]} 21. Nf4 {[%clk 0:02:03]}  g5 {[%clk 0:01:33]} 22. Ng2 {[%clk 0:01:51]}  Be6 {[%clk 0:01:30]} 23. O-O-O {[%clk 0:01:50]}  Ke7 {[%clk 0:01:29]} 24. e4 {[%clk 0:01:41]}  Nd4 {[%clk 0:01:19]} 25. h4 {[%clk 0:01:36]}  Bh3 {[%clk 0:01:14]} 26. Ne3 {[%clk 0:01:30]}  g4 {[%clk 0:01:04]} 27. c3 {[%clk 0:01:22]}  Nf3 {[%clk 0:01:01]} 28. h5 {[%clk 0:01:19]}  Rh8 {[%clk 0:00:58]} 29. h6 {[%clk 0:01:19]}  Kf6 {[%clk 0:00:52]} 30. Nf5 {[%clk 0:01:15]}  Kg5 {[%clk 0:00:48]} 31. Be2 {[%clk 0:01:13]}  Ne5 {[%clk 0:00:41]} 32. Rd5 {[%clk 0:01:00]}  Kf4 {[%clk 0:00:40]} 33. Rc5 {[%clk 0:00:35]}  c6 {[%clk 0:00:31]} 34. Ng3 {[%clk 0:00:30]}  Rxh6 {[%clk 0:00:18]} 35. Ra5 {[%clk 0:00:21]}  Bg2 {[%clk 0:00:17]} 36. Ra4 {[%clk 0:00:20]}  Bf3 {[%clk 0:00:17]} 37. Bxf3 {[%clk 0:00:19]}  gxf3 {[%clk 0:00:17]} 38. Kd2 {[%clk 0:00:18]}  Rh2 {[%clk 0:00:17]} 39. Ke1 {[%clk 0:00:15]}  Nd3+ {[%clk 0:00:17]} 40. Kd2 {[%clk 0:00:14]}  Nxb2 {[%clk 0:00:11]} 41. Rb4 {[%clk 0:00:13]}  Rxf2+ {[%clk 0:00:11]} 42. Ke1 {[%clk 0:00:05]}  Nd3+ {[%clk 0:00:11]} 43. Kd1 {[%clk 0:00:05]}  Nxb4 {[%clk 0:00:10]} 44. Nh5+ {[%clk 0:00:05]}  Kg5 {[%clk 0:00:10]} 45. cxb4 {[%clk 0:00:05]}  Kxh5 {[%clk 0:00:10]} 46. Ke1 {[%clk 0:00:06]}  Re2+ {[%clk 0:00:10]} 0-1


[Site "https://www.chess.com"]